fUST/lending_fUST_20250325
["ID","MTS","AMOUNT","RATE_DAILY","PERIOD"]
[356633467,1742863843511,-500.0,0.00013698,2]
[356633468,1742863843521,-500.0,0.00013698,2]
[356633469,1742863843531,-500.0,0.00013698,2]
[356633470,1742863843541,-349.50549433,0.00013698,2]
[356633471,1742863843551,-500.0,0.00013698,2]
[356633472,1742863843561,-500.0,0.00013698,2]
[356633473,1742863843571,-500.0,0.00013698,2]
[356633474,1742863843580,-500.0,0.00013698,2]
[356633475,1742863843590,-500.0,0.00013698,2]
[356633476,1742863843599,-500.0,0.00013698,2]
[356633477,1742863843609,-500.0,0.00013698,2]
[356633478,1742863843619,-500.0,0.00013698,2]
[356633479,1742863843629,-1088.66,0.00013698,2]
[356633480,1742863843640,-500.0,0.00013698,2]
[356633481,1742863843650,-976.27,0.00013698,2]
[356633482,1742863843661,-500.0,0.00013698,2]
[356633483,1742863843670,-500.0,0.00013698,2]
[356633484,1742863843679,-500.0,0.00013698,2]
[356633485,1742863843689,-500.0,0.00013698,2]
[356633486,1742863843698,-500.0,0.00013698,2]
[356633487,1742863843708,-500.0,0.00013698,2]
[356633488,1742863843718,-500.0,0.00013698,2]
[356633489,1742863843728,-500.0,0.00013698,2]
[356633490,1742863843737,-132.90510871,0.00013698,2]
[356633738,1742863910818,172.999999,0.00010959,2]
[356633739,1742864339236,420.45005192,0.00021,120]
[356633740,1742864407103,250.0,0.0002,99]
[356633796,1742865032310,-2500.0,0.00013,2]
[356633797,1742865032320,-300.0,0.00013579,2]
[356633798,1742865032329,-182.8608085,0.0001358,2]
[356633799,1742865032338,-500.0,0.0001358,2]
[356633800,1742865032348,-500.0,0.0001358,2]
[356633801,1742865032357,-500.0,0.0001358,2]
[356633802,1742865032367,-500.0,0.0001358,2]
[356633803,1742865032376,-500.0,0.0001358,2]
[356633804,1742865032386,-500.0,0.0001358,2]
[356633805,1742865032395,-362.18207597,0.00013597,2]
[356633806,1742865032404,-275.62383817,0.00013597,2]
[356633807,1742865032413,-155400.29943135,0.00013598,2]
[356633808,1742865032422,-2000.0,0.000136,2]
[356633809,1742865032431,-2000.0,0.000136,3]
[356633810,1742865032440,-156.587,0.0001369,2]
[356633811,1742865032449,-600.0,0.0001369,2]
[356633812,1742865032458,-252.00000003,0.00013698,2]
[356633813,1742865032481,-500.0,0.00013698,2]
[356633814,1742865032491,-151.92844629,0.00013698,2]
[356633815,1742865032500,-500.0,0.00013698,2]
[356633816,1742865032512,-500.0,0.00013698,2]
[356633817,1742865032521,-500.0,0.00013698,2]
[356633818,1742865032531,-500.0,0.00013698,2]
[356633819,1742865032541,-500.0,0.00013698,2]
[356633820,1742865032551,-500.0,0.00013698,2]
[356633821,1742865032561,-500.0,0.00013698,2]
[356633822,1742865032570,-500.0,0.00013698,2]
[356633823,1742865032579,-500.0,0.00013698,2]
[356633824,1742865032589,-602.93,0.00013698,2]
[356633825,1742865032599,-500.0,0.00013698,2]
[356633826,1742865032608,-500.0,0.00013698,2]
[356633827,1742865032618,-500.0,0.00013698,2]
[356633828,1742865032627,-500.0,0.00013698,2]
[356633829,1742865032636,-500.0,0.00013698,2]
[356633830,1742865032645,-500.0,0.00013698,2]
[356633831,1742865032655,-500.0,0.00013698,2]
[356633832,1742865032665,-500.0,0.00013698,2]
[356633833,1742865032674,-500.0,0.00013698,2]
[356633834,1742865032684,-500.0,0.00013698,2]
[356633835,1742865032693,-500.0,0.00013698,2]
[356633836,1742865032703,-500.0,0.00013698,2]
[356633837,1742865032713,-500.0,0.00013698,2]
[356633838,1742865032722,-568.44988483,0.00013698,2]
[356633839,1742865032731,-935.59,0.00013698,2]
[356633840,1742865032741,-500.0,0.00013698,2]
[356633841,1742865032750,-1043.3,0.00013698,2]
[356633842,1742865032759,-500.0,0.00013698,2]
[356633843,1742865032769,-500.0,0.00013698,2]
[356633844,1742865032778,-500.0,0.00013698,2]
[356633845,1742865032788,-500.0,0.00013698,2]
[356633846,1742865032797,-500.0,0.00013698,2]
[356633847,1742865032807,-500.0,0.00013698,2]
[356633848,1742865032816,-500.0,0.00013698,2]
[356633849,1742865032826,-500.0,0.00013698,2]
[356633850,1742865032836,-500.0,0.00013698,2]
[356633851,1742865032845,-500.0,0.00013698,2]
[356633852,1742865032855,-500.0,0.00013698,2]
[356633853,1742865032865,-500.0,0.00013698,2]
[356633854,1742865032875,-500.0,0.00013698,2]
[356633855,1742865032884,-500.0,0.00013698,2]
[356633856,1742865032894,-500.0,0.00013698,2]
[356633857,1742865032903,-500.0,0.00013698,2]
[356633858,1742865032912,-500.0,0.00013698,2]
[356633859,1742865032922,-611.11,0.00013698,2]
[356633860,1742865032931,-500.0,0.00013698,2]
[356633861,1742865032940,-500.0,0.00013698,2]
[356633862,1742865032950,-500.0,0.00013698,2]
[356633863,1742865032959,-500.0,0.00013698,2]
[356633864,1742865032968,-500.0,0.00013698,2]
[356633865,1742865032978,-797.11,0.00013698,2]
[356633866,1742865032987,-500.0,0.00013698,2]
[356633867,1742865032997,-500.0,0.00013698,2]
[356633868,1742865033006,-513.83876891,0.00013698,2]
[356633869,1742865033016,-500.0,0.00013698,2]
[356633870,1742865033026,-500.0,0.00013698,2]
[356633871,1742865033035,-500.0,0.00013698,2]
[356633872,1742865033045,-2992.07,0.00013698,2]
[356633873,1742865033055,-500.0,0.00013698,2]
[356633874,1742865033065,-500.0,0.00013698,2]
[356633875,1742865033075,-500.0,0.00013698,2]
[356633876,1742865033087,-500.0,0.00013698,2]
[356633877,1742865033097,-500.0,0.00013698,2]
[356633878,1742865033107,-500.0,0.00013698,2]
[356633879,1742865033116,-500.0,0.00013698,2]
[356633880,1742865033126,-500.0,0.00013698,2]
[356633881,1742865033136,-500.0,0.00013698,2]
[356633882,1742865033146,-500.0,0.00013698,2]
[356633883,1742865033155,-1107.03,0.00013698,2]
[356633884,1742865033165,-555.37633461,0.00013698,2]
[356633885,1742865033175,-500.0,0.00013698,2]
[356633886,1742865033186,-500.0,0.00013698,2]
[356633887,1742865033196,-500.0,0.00013698,2]
[356633888,1742865033205,-500.0,0.00013698,2]
[356633889,1742865033215,-907.06,0.00013698,2]
[356633890,1742865033225,-843.29,0.00013698,2]
[356633891,1742865033235,-550.98807185,0.00013698,2]
[356633892,1742865033245,-500.0,0.00013698,2]
[356633893,1742865033255,-520.21,0.00013698,2]
[356633894,1742865033264,-500.0,0.00013698,2]
[356633895,1742865033274,-500.0,0.00013698,2]
[356633896,1742865033284,-500.0,0.00013698,2]
[356633897,1742865033293,-500.0,0.00013698,2]
[356633898,1742865033303,-516.95465513,0.00013698,2]
[356633899,1742865033313,-505.09894301,0.00013698,2]
[356633900,1742865033323,-500.0,0.00013698,2]
[356633901,1742865033333,-500.0,0.00013698,2]
[356633902,1742865033343,-500.0,0.00013698,2]
[356633903,1742865033353,-500.0,0.00013698,2]
[356633904,1742865033363,-500.0,0.00013698,2]
[356633905,1742865033373,-551.14124329,0.00013698,2]
[356633906,1742865033383,-500.0,0.00013698,2]
[356633907,1742865033392,-500.0,0.00013698,2]
[356633908,1742865033402,-500.0,0.00013698,2]
[356633909,1742865033412,-500.0,0.00013698,2]
[356633910,1742865033421,-500.0,0.00013698,2]
[356633911,1742865033431,-500.0,0.00013698,2]
[356633912,1742865033441,-500.0,0.00013698,2]
[356633913,1742865033452,-500.0,0.00013698,2]
[356633914,1742865033462,-500.0,0.00013698,2]
[356633915,1742865033472,-500.0,0.00013698,2]
[356633916,1742865033483,-500.0,0.00013698,2]
[356633917,1742865033493,-500.0,0.00013698,2]
[356633918,1742865033503,-500.0,0.00013698,2]
[356633919,1742865033514,-500.0,0.00013698,2]
[356633920,1742865033524,-500.0,0.00013698,2]
[356633921,1742865033536,-500.0,0.00013698,2]
[356633922,1742865033546,-500.0,0.00013698,2]
[356633923,1742865033559,-507.56512476,0.00013698,2]
[356633924,1742865033569,-586.78408327,0.00013698,2]
[356633925,1742865033578,-550.30646037,0.00013698,2]
[356633926,1742865033588,-500.0,0.00013698,2]
[356633927,1742865033597,-505.44442458,0.00013698,2]
[356633928,1742865033607,-500.0,0.00013698,2]
[356633929,1742865033617,-500.0,0.00013698,2]
[356633930,1742865033627,-500.0,0.00013698,2]
[356633931,1742865033637,-500.0,0.00013698,2]
[356633932,1742865033647,-500.0,0.00013698,2]
[356633933,1742865033656,-500.0,0.00013698,2]
[356633934,1742865033666,-653.13,0.00013698,2]
[356633935,1742865033675,-774.62,0.00013698,2]
[356633936,1742865033685,-483.0,0.00013698,2]
[356633937,1742865033695,-782.48,0.00013698,2]
[356633938,1742865033704,-419.64372561,0.00013698,2]
[356633939,1742865033714,-522.15,0.00013698,2]
[356633940,1742865033723,-2916.66,0.00013698,2]
[356633941,1742865033732,-500.0,0.00013698,2]
[356633942,1742865033742,-524.64,0.00013698,2]
[356633943,1742865033752,-578.25,0.00013698,2]
[356633944,1742865033761,-1153.19,0.00013698,2]
[356633945,1742865033771,-592.57,0.00013698,2]
[356633946,1742865033781,-500.0,0.00013698,2]
[356633947,1742865033790,-500.0,0.00013698,2]
[356633948,1742865033800,-895.14,0.00013698,2]
[356633949,1742865033809,-529.71579392,0.00013698,2]
[356633950,1742865033819,-500.0,0.00013698,2]
[356633951,1742865033828,-551.46476357,0.00013698,2]
[356633952,1742865033838,-500.0,0.00013698,2]
[356633953,1742865033847,-500.0,0.00013698,2]
[356633954,1742865033857,-3806.47,0.00013698,2]
[356633955,1742865033867,-1896.52,0.00013698,2]
[356633956,1742865033876,-500.0,0.00013698,2]
[356633957,1742865033886,-500.0,0.00013698,2]
[356633958,1742865033895,-1321.1,0.00013698,2]
[356633959,1742865033905,-2493.09,0.00013698,2]
[356633960,1742865033915,-512.78162673,0.00013698,2]
[356633961,1742865033924,-500.0,0.00013698,2]
[356633962,1742865033934,-500.0,0.00013698,2]
[356633963,1742865033944,-500.0,0.00013698,2]
[356633964,1742865033954,-545.17,0.00013698,2]
[356633965,1742865033964,-500.0,0.00013698,2]
[356633966,1742865033974,-1482.1,0.00013698,2]
[356633967,1742865033984,-2060.08,0.00013698,2]
[356633968,1742865033994,-976.44,0.00013698,2]
[356633969,1742865034004,-981.26,0.00013698,2]
[356633970,1742865034014,-500.0,0.00013698,2]
[356633971,1742865034024,-259.152162,0.00013698,2]
[356633972,1742865034033,-500.0,0.00013698,2]
[356633973,1742865034043,-765.86,0.00013698,2]
[356633974,1742865034053,-511.52002292,0.00013698,2]
[356633975,1742865034063,-500.0,0.00013698,2]
[356633976,1742865034073,-559.86,0.00013698,2]
[356633977,1742865034083,-509.86541436,0.00013698,2]
[356633978,1742865034094,-513.52926022,0.00013698,2]
[356633979,1742865034103,-500.0,0.00013698,2]
[356633980,1742865034114,-4650.33,0.00013698,2]
[356633981,1742865034124,-500.0,0.00013698,2]
[356633982,1742865034134,-942.3,0.00013698,2]
[356633983,1742865034144,-500.0,0.00013698,2]
[356633984,1742865034153,-500.0,0.00013698,2]
[356633985,1742865034163,-500.0,0.00013698,2]
[356633986,1742865034173,-500.0,0.00013698,2]
[356633987,1742865034182,-500.0,0.00013698,2]
[356633988,1742865034192,-500.0,0.00013698,2]
[356633989,1742865034202,-500.0,0.00013698,2]
[356633990,1742865034211,-90819.54421015,0.00013698,2]
[356634015,1742865038132,-1521.36559119,0.00013698,2]
[356634209,1742865043202,-11685.17019866,0.00013698,2]
[356634210,1742865043212,-588.38,0.00013698,2]
[356634211,1742865043222,-500.0,0.00013698,2]
[356634212,1742865043232,-560.69,0.00013698,2]
[356634213,1742865043241,-654.01,0.00013698,2]
[356634214,1742865043251,-2351.9,0.00013698,2]
[356634215,1742865043260,-872.07,0.00013698,2]
[356634216,1742865043270,-500.0,0.00013698,2]
[356634217,1742865043280,-500.0,0.00013698,2]
[356634218,1742865043290,-2736.8,0.00013698,2]
[356634219,1742865043299,-500.0,0.00013698,2]
[356634220,1742865043309,-1339.36,0.00013698,2]
[356634221,1742865043319,-500.0,0.00013698,2]
[356634222,1742865043329,-2478.42,0.00013698,2]
[356634223,1742865043339,-500.0,0.00013698,2]
[356634225,1742865043349,-505.78898587,0.00013698,2]
[356634227,1742865043359,-5504.87,0.00013698,2]
[356634229,1742865043368,-5364.77,0.00013698,2]
[356634231,1742865043378,-1156.65,0.00013698,2]
[356634233,1742865043387,-500.0,0.00013698,2]
[356634234,1742865043397,-500.0,0.00013698,2]
[356634235,1742865043406,-966.07,0.00013698,2]
[356634236,1742865043416,-459.27032774,0.00013698,2]
[356634335,1742866232530,-2548.5926531,0.000125,2]
[356634336,1742866232540,-5338.08967745,0.00012519,2]
[356634337,1742866232551,-207.9881713,0.00012619,2]
[356634338,1742866232561,-1723.138615,0.00013398,2]
[356634339,1742866232571,-300.0,0.00013479,2]
[356634340,1742866232581,-705.84249063,0.0001348,2]
[356634341,1742866232597,-2905.72800386,0.0001348,2]
[356634342,1742866232607,-253.52745318,0.00013497,2]
[356634343,1742866232617,-162039.295359,0.00013498,2]
[356634344,1742866232630,-39483.86795984,0.00013498,2]
[356634345,1742866232640,-182.8608086,0.0001358,2]
[356634346,1742866232650,-160.0,0.00013676,2]
[356634347,1742866232660,-160.0,0.00013676,2]
[356634348,1742866232670,-418.2974228,0.00013676,2]
[356634349,1742866232681,-834.65560377,0.00013676,2]
[356634350,1742866232691,-160.0,0.00013676,2]
[356634351,1742866232701,-12458.93820146,0.00013676,2]
[356634352,1742866232711,-600.0,0.0001369,2]
[356634353,1742866232721,-500.0,0.00013698,2]
[356634354,1742866232731,-500.0,0.00013698,2]
[356634355,1742866232741,-639.0124166,0.00013698,2]
[356634356,1742866232751,-500.0,0.00013698,2]
[356634357,1742866232761,-500.0,0.00013698,2]
[356634358,1742866232770,-500.0,0.00013698,2]
[356634359,1742866232780,-500.0,0.00013698,2]
[356634360,1742866232790,-500.0,0.00013698,2]
[356634361,1742866232800,-500.0,0.00013698,2]
[356634362,1742866232810,-433.67017706,0.00013698,2]
[356634363,1742866232820,-500.0,0.00013698,2]
[356634364,1742866232830,-500.0,0.00013698,2]
[356634365,1742866232844,-500.0,0.00013698,2]
[356634366,1742866232854,-500.0,0.00013698,2]
[356634367,1742866232864,-506.1210127,0.00013698,2]
[356634368,1742866232874,-500.0,0.00013698,2]
[356634369,1742866232884,-500.0,0.00013698,2]
[356634370,1742866232894,-500.0,0.00013698,2]
[356634371,1742866232904,-500.0,0.00013698,2]
[356634372,1742866232914,-500.0,0.00013698,2]
[356634373,1742866232924,-500.0,0.00013698,2]
[356634374,1742866232934,-500.0,0.00013698,2]
[356634375,1742866232943,-500.0,0.00013698,2]
[356634376,1742866232954,-500.0,0.00013698,2]
[356634377,1742866232964,-500.0,0.00013698,2]
[356634378,1742866232975,-375.2409364,0.00013698,2]
[356634379,1742866232985,-500.0,0.00013698,2]
[356634380,1742866232995,-510.7446577,0.00013698,2]
[356634381,1742866233006,-500.0,0.00013698,2]
[356634382,1742866233016,-500.0,0.00013698,2]
[356634383,1742866233026,-500.0,0.00013698,2]
[356634384,1742866233036,-236.3884619,0.00013698,2]
[356634385,1742866233049,-318.82636742,0.00013698,2]
[356634386,1742866233059,-500.0,0.00013698,2]
[356634387,1742866233069,-500.0,0.00013698,2]
[356634388,1742866233080,-999.83,0.00013698,2]
[356634389,1742866233098,-500.0,0.00013698,2]
[356634390,1742866233108,-500.0,0.00013698,2]
[356634391,1742866233119,-299.809103,0.00013698,2]
[356634392,1742866233130,-500.0,0.00013698,2]
[356634393,1742866233141,-500.0,0.00013698,2]
[356634394,1742866233151,-313.55742006,0.00013698,2]
[356634395,1742866233162,-896.61,0.00013698,2]
[356634396,1742866233174,-500.0,0.00013698,2]
[356634397,1742866233185,-500.0,0.00013698,2]
[356634398,1742866233195,-500.0,0.00013698,2]
[356634399,1742866233205,-500.0,0.00013698,2]
[356634400,1742866233216,-500.0,0.00013698,2]
[356634401,1742866233226,-388.19390976,0.00013698,2]
[356634402,1742866233236,-500.0,0.00013698,2]
[356634403,1742866233246,-500.0,0.00013698,2]
[356634404,1742866233258,-500.0,0.00013698,2]
[356634405,1742866233267,-500.0,0.00013698,2]
[356634406,1742866233277,-500.0,0.00013698,2]
[356634407,1742866233288,-500.0,0.00013698,2]
[356634408,1742866233298,-500.0,0.00013698,2]
[356634409,1742866233308,-251.7292301,0.00013698,2]
[356634410,1742866233318,-585.65,0.00013698,2]
[356634411,1742866233328,-500.0,0.00013698,2]
[356634412,1742866233343,-500.0,0.00013698,2]
[356634413,1742866233353,-763.9,0.00013698,2]
[356634414,1742866233363,-611.83936289,0.00013698,2]
[356634415,1742866233374,-500.0,0.00013698,2]
[356634416,1742866233383,-500.0,0.00013698,2]
[356634417,1742866233393,-500.0,0.00013698,2]
[356634418,1742866233403,-500.0,0.00013698,2]
[356634419,1742866233413,-500.0,0.00013698,2]
[356634420,1742866233423,-500.0,0.00013698,2]
[356634421,1742866233433,-500.0,0.00013698,2]
[356634422,1742866233443,-2867.4,0.00013698,2]
[356634423,1742866233453,-500.0,0.00013698,2]
[356634424,1742866233462,-500.0,0.00013698,2]
[356634425,1742866233472,-508.81826615,0.00013698,2]
[356634426,1742866233483,-808.15,0.00013698,2]
[356634427,1742866233493,-500.0,0.00013698,2]
[356634428,1742866233502,-1060.91,0.00013698,2]
[356634429,1742866233512,-494.03822979,0.00013698,2]
[356634430,1742866233522,-500.0,0.00013698,2]
[356634431,1742866233532,-500.0,0.00013698,2]
[356634432,1742866233542,-500.0,0.00013698,2]
[356634433,1742866233552,-500.0,0.00013698,2]
[356634434,1742866233561,-869.27,0.00013698,2]
[356634435,1742866233571,-500.0,0.00013698,2]
[356634436,1742866233581,-500.0,0.00013698,2]
[356634437,1742866233594,-500.0,0.00013698,2]
[356634438,1742866233604,-500.0,0.00013698,2]
[356634439,1742866233614,-516.61758492,0.00013698,2]
[356634440,1742866233624,-500.0,0.00013698,2]
[356634441,1742866233633,-500.0,0.00013698,2]
[356634442,1742866233644,-194.52459113,0.00013698,2]
[356634443,1742866233654,-500.0,0.00013698,2]
[356634444,1742866233663,-500.0,0.00013698,2]
[356634445,1742866233673,-500.0,0.00013698,2]
[356634446,1742866233683,-500.0,0.00013698,2]
[356634447,1742866233693,-639.58618384,0.00013698,2]
[356634448,1742866233703,-500.0,0.00013698,2]
[356634449,1742866233713,-500.0,0.00013698,2]
[356634450,1742866233722,-500.0,0.00013698,2]
[356634451,1742866233732,-500.0,0.00013698,2]
[356634452,1742866233742,-500.0,0.00013698,2]
[356634453,1742866233751,-500.0,0.00013698,2]
[356634454,1742866233762,-500.0,0.00013698,2]
[356634455,1742866233771,-500.0,0.00013698,2]
[356634456,1742866233781,-198.27829693,0.00013698,2]
[356634457,1742866233791,-500.0,0.00013698,2]
[356634458,1742866233800,-328.47072436,0.00013698,2]
[356634459,1742866233953,-309.97911094,0.00013698,2]
[356634460,1742866233963,-500.0,0.00013698,2]
[356634461,1742866233974,-500.0,0.00013698,2]
[356634462,1742866233984,-625.92,0.00013698,2]
[356634463,1742866233994,-742.35,0.00013698,2]
[356634464,1742866234004,-749.87,0.00013698,2]
[356634465,1742866234014,-500.39,0.00013698,2]
[356634466,1742866234024,-500.0,0.00013698,2]
[356634467,1742866234034,-554.15,0.00013698,2]
[356634468,1742866234046,-502.78,0.00013698,2]
[356634469,1742866234056,-567.88,0.00013698,2]
[356634470,1742866234065,-500.0,0.00013698,2]
[356634471,1742866234075,-2840.69,0.00013698,2]
[356634472,1742866234091,-1296.14,0.00013698,2]
[356634473,1742866234101,-500.0,0.00013698,2]
[356634474,1742866234110,-500.0,0.00013698,2]
[356634475,1742866234120,-1817.5,0.00013698,2]
[356634476,1742866234131,-522.45,0.00013698,2]
[356634477,1742866234140,-857.85,0.00013698,2]
[356634478,1742866234151,-500.0,0.00013698,2]
[356634479,1742866234161,-500.0,0.00013698,2]
[356634480,1742866234171,-2389.21,0.00013698,2]
[356634481,1742866234181,-940.38,0.00013698,2]
[356634482,1742866234191,-658.08,0.00013698,2]
[356634483,1742866234201,-500.0,0.00013698,2]
[356634484,1742866234211,-3985.74,0.00013698,2]
[356634485,1742866234220,-500.0,0.00013698,2]
[356634486,1742866234229,-935.76,0.00013698,2]
[356634487,1742866234238,-1387.4,0.00013698,2]
[356634488,1742866234248,-500.0,0.00013698,2]
[356634489,1742866234258,-500.0,0.00013698,2]
[356634490,1742866234267,-1420.35,0.00013698,2]
[356634491,1742866234277,-500.0,0.00013698,2]
[356634492,1742866234286,-500.0,0.00013698,2]
[356634493,1742866234296,-500.0,0.00013698,2]
[356634494,1742866234306,-500.0,0.00013698,2]
[356634495,1742866234315,-903.04,0.00013698,2]
[356634496,1742866234324,-500.0,0.00013698,2]
[356634497,1742866234338,-536.54,0.00013698,2]
[356634498,1742866234349,-500.0,0.00013698,2]
[356634499,1742866234359,-500.0,0.00013698,2]
[356634500,1742866234369,-4456.57,0.00013698,2]
[356634501,1742866234380,-563.86,0.00013698,2]
[356634502,1742866234391,-537.33,0.00013698,2]
[356634503,1742866234402,-16880.83404065,0.00013698,2]
[356634504,1742866234427,-82810.82595935,0.00013698,2]
[356634505,1742866234438,-500.0,0.00013698,2]
[356634506,1742866234448,-500.0,0.00013698,2]
[356634507,1742866234459,-835.73,0.00013698,2]
[356634508,1742866234469,-500.0,0.00013698,2]
[356634509,1742866234479,-222.74585546,0.00013698,2]
[356634510,1742866234489,-500.0,0.00013698,2]
[356634511,1742866234499,-1069.63,0.00013698,2]
[356634512,1742866234509,-500.0,0.00013698,2]
[356634513,1742866234519,-500.0,0.00013698,2]
[356634514,1742866234529,-10542.23,0.00013698,2]
[356634515,1742866234539,-500.0,0.00013698,2]
[356634516,1742866234548,-2253.9,0.00013698,2]
[356634517,1742866234558,-1108.46,0.00013698,2]
[356634518,1742866234568,-925.82,0.00013698,2]
[356634519,1742866234578,-500.0,0.00013698,2]
[356634520,1742866234594,-1021.52,0.00013698,2]
[356634521,1742866234603,-2622.76,0.00013698,2]
[356634522,1742866234613,-500.0,0.00013698,2]
[356634523,1742866234622,-500.0,0.00013698,2]
[356634524,1742866234632,-500.0,0.00013698,2]
[356634525,1742866234641,-2812.73026555,0.00013698,2]
[356634534,1742866238370,-1099.25973445,0.00013698,2]
[356634535,1742866238380,-500.0,0.00013698,2]
[356634536,1742866238390,-1186.61482013,0.00013698,2]
[356634537,1742866238402,-674.62973335,0.00013698,2]
[356634538,1742866238494,-386.01728257,0.00013698,2]
[356634539,1742866238506,-127.89816395,0.00013698,2]
[356634540,1742866238516,-500.0,0.00013698,2]
[356634542,1742866238526,-198.96318614,0.00013698,2]
[356634544,1742866238535,-65.45521693,0.00013698,2]
[356634545,1742866238548,-434.54478307,0.00013698,2]
[356634546,1742866238557,-500.0,0.00013698,2]
[356634547,1742866238567,-500.0,0.00013698,2]
[356634548,1742866238577,-7106.48317746,0.00013698,2]
[356634549,1742866238593,-1296.03682254,0.00013698,2]
[356634550,1742866238603,-509.82685168,0.00013698,2]
[356634551,1742866238613,-5297.5,0.00013698,2]
[356634552,1742866238622,-500.0,0.00013698,2]
[356634553,1742866238632,-879.18,0.00013698,2]
[356634554,1742866238641,-500.0,0.00013698,2]
[356634555,1742866238651,-1068.45,0.00013698,2]
[356634556,1742866238660,-507.96542306,0.00013698,2]
[356634557,1742866238669,-160.70311553,0.00013698,2]
[356634558,1742866238678,-958.39,0.00013698,2]
[356634559,1742866238688,-1222.52,0.00013698,2]
[356634560,1742866238697,-500.0,0.00013698,2]
[356634561,1742866238707,-118.2511174,0.00013698,2]
[356634562,1742866238719,-321.7488826,0.00013698,2]
[356634563,1742866238729,-1963.94,0.00013698,2]
[356634564,1742866238738,-207.39373755,0.00013698,2]
[356634588,1742866243418,-370.41626245,0.00013698,2]
[356634589,1742866243428,-852.0,0.00013698,2]
[356634590,1742866243438,-1170.49,0.00013698,2]
[356634591,1742866243447,-524.47,0.00013698,2]
[356634592,1742866243457,-500.0,0.00013698,2]
[356634593,1742866243467,-500.0,0.00013698,2]
[356634594,1742866243477,-930.57,0.00013698,2]
[356634595,1742866243487,-500.0,0.00013698,2]
[356634596,1742866243496,-481.974791,0.00013698,2]
[356634597,1742866243505,-1581.67,0.00013698,2]
[356634598,1742866243514,-1567.95,0.00013698,2]
[356634599,1742866243524,-481.974791,0.00013698,2]
[356634600,1742866243534,-500.0,0.00013698,2]
[356634601,1742866243544,-500.0,0.00013698,2]
[356634602,1742866243553,-781.97,0.00013698,2]
[356634603,1742866243564,-240.0,0.00013698,2]
[356634604,1742866243573,-1613.7,0.00013698,2]
[356634605,1742866243583,-500.0,0.00013698,2]
[356634606,1742866243596,-500.0,0.00013698,2]
[356634607,1742866243606,-922.46,0.00013698,2]
[356634608,1742866243616,-500.0,0.00013698,2]
[356634609,1742866243625,-5023.46,0.00013698,2]
[356634610,1742866243635,-1095.14,0.00013698,2]
[356634611,1742866243645,-500.0,0.00013698,2]
[356634612,1742866243655,-510.35,0.00013698,2]
[356634613,1742866243664,-93.88859496,0.00013698,2]
[356634614,1742866243676,-406.11140504,0.00013698,2]
[356634615,1742866243686,-1626.67,0.00013698,2]
[356634616,1742866243696,-500.0,0.00013698,2]
[356634617,1742866243705,-1663.32,0.00013698,2]
[356634618,1742866243715,-500.0,0.00013698,2]
[356634619,1742866243723,-500.0,0.00013698,2]
[356634620,1742866243733,-500.0,0.00013698,2]
[356634621,1742866243742,-500.0,0.00013698,2]